Cogmind - Beta 14 @@@ ROGUE MODE // 2024.10.05 @ 14:15:39 Player: star Result: Destroyed by C1-NY8(R) with Subdweller Machine Gun Performance ------------- Evolutions (0) 0 Regions Visited (2) 400 Robots Destroyed (23) 115 Value Destroyed (436) 436 Prototype IDs (0) 0 Alien Tech Used (0) 0 Bonus (0) 0 TOTAL SCORE: 951 Bonus ------- None Cogmind --------- Core Integrity 0/250 Matter 290/300 Energy 200/200 System Corruption 0% Temperature Cool (0) Movement Rolling (90) Location -10/Subcaves Parts ------- > --- POWER (1) -------- Subdweller Power Source > --- PROPULSION (2) --- Armored Wheel Armored Wheel > --- UTILITY (2) ------ Improved Targeting Computer Improved Targeting Computer > --- WEAPON (2) ------- Subdweller Beam Cannon > --- INVENTORY (5) ---- Medium Matter Pod (80) Recalibrator Peak State ------------ > --- POWER ------------ Light Ion Engine > --- PROPULSION ------- Armored Wheel Armored Wheel > --- UTILITY ---------- Scrap Shield > --- WEAPON ----------- Battle Rifle Subdweller Machine Gun > --- INVENTORY -------- Armored Wheel Medium Matter Pod Improved Targeting Computer Improved Targeting Computer Recalibrator [Rating: 14] Favorites ----------- Power Light Ion Engine Engine Light Ion Engine Propulsion Armored Wheel Wheel Armored Wheel Utility Core Shielding Storage Medium Storage Unit Processor Improved Targeting Computer Protection Core Shielding Weapon EM Pulse Gun Energy Gun EM Pulse Gun Energy Cannon Beam Cannon Ballistic Gun Battle Rifle Build | -11 -10 -10 ------- Run | Yrd Mat Sub Slots Evolved . | . . . Power . | . . . Propulsion . | . . . Utility . | . . . Weapon . | . . . Parts Attached 27 | 6 8 13 Power 4 | 1 2 1 Engine 4 | 1 2 1 Core . | . . . Reactor . | . . . Propulsion 5 | 2 2 1 Treads . | . . . Leg . | . . . Wheel 5 | 2 2 1 Hover . | . . . Flight . | . . . Utility 7 | 1 2 4 Device . | . . . Storage 3 | 1 1 1 Processor 2 | . . 2 Hackware . | . . . Protection 2 | . 1 1 Artifact . | . . . Weapon 11 | 2 2 7 Energy Gun 5 | 2 1 2 Energy Cannon 3 | . 1 2 Ballistic Gun 3 | . . 3 Ballistic Cannon . | . . . Launcher . | . . . Special Weapon . | . . . Impact Weapon . | . . . Slashing Weapon . | . . . Piercing Weapon . | . . . Special Melee Weapon . | . . . Unidentified Prototypes . | . . . Parts Lost 8 | . . 8 Power 1 | . . 1 Propulsion 1 | . . 1 Utility 1 | . . 1 Weapon 5 | . . 5 Highest Loss Streak 6 | . . 6 To Critical Strikes 1 | . . 1 Average Slot Usage (%) 96 | . 99 91 Engine 13 | . 14 13 Wheel 27 | . 28 27 Storage 12 | . 14 9 Protection 12 | . 13 11 Energy Gun 17 | . 24 6 Energy Cannon 4 | . 3 5 Ballistic Gun 6 | . . 15 Peak Build Rating 14 | 6 10 14 Average Rating 9 | 4 8 11 On Entrance 5 | . 6 10 Naked Turns . | . . . Heaviest Build 27 | 11 19 27 Greatest Support 28 | 26 28 24 Greatest Overweight (x) 1 | . . 1 Average Overweight (x) . | . . . Largest Inventory Capacity 10 | 8 10 10 Average Capacity 9 | 6 9 8 Most Carried 10 | 2 10 10 Average Carried 7 | 1 8 8 Final Capacity 10 | 8 10 5 Final Carried 10 | 2 10 2 Class Distribution -------------------- 100% | Mutant Dominant Class ---------------- Mutant | -10/Materials Mutant | -10/Subcaves Resources | -11 -10 -10 ----------- Run | Yrd Mat Sub Matter Collected 639 | 217 236 186 Remotely . | . . . Salvage Created 659 | . 359 300 Parts 63 | . 32 31 Haulers Intercepted 2 | . 2 . Recyclers Shooed . | . . . Parts Field Recycled . | . . . Retrieved Matter . | . . . Parts Self-Destructed 6 | . . 6 Prevented . | . . . Kills | -11 -10 -10 ------- Run | Yrd Mat Sub Combat Hostiles Destroyed 19 | . 10 9 Guns 16 | . 9 7 Cannons 2 | . . 2 AOE 1 | . 1 . Classes Destroyed 6 | . 5 1 Builder 1 | . 1 . Hauler 2 | . 2 . Mechanic 1 | . 1 . Swarmer 12 | . 9 3 Grunt 1 | . 1 . Subdweller 6 | . . 6 Best Kill Streak 5 | . 5 3 Combat Bots Only 3 | . 3 3 Max Kills in Single Turn 1 | . 1 1 Gunslinging . | . . . Exploded 1 | . 1 . Melee . | . . . Uniques/NPCs Destroyed . | . . . Combat | -11 -10 -10 -------- Run | Yrd Mat Sub Hostile Shots Fired 95 | . 37 58 Missed 21 | . 8 13 Damage Taken 1252 | . 322 930 Core 256 | . 55 201 Absorbed by Shields . | . . . Redirected to Shielding 21 | . 11 10 Regen/Repaired (Parts) 43 | . 43 . Core Remaining (%) 100 | 100 . . Volleys Fired 68 | . 31 37 Largest 2 | . 2 2 Hottest 140 | . 100 140 Shots Fired 131 | . 61 70 Gun 112 | . 59 53 Cannon 19 | . 2 17 Launcher . | . . . Special . | . . . Kinetic 35 | . . 35 Thermal 63 | . 30 33 Explosive . | . . . Electromagnetic 33 | . 31 2 Robot Hit Streak 20 | . 8 20 Robot Miss Streak 6 | . 6 4 Penetration Max . | . . . Secondary Targets 2 | . 1 1 Max Gunslinging Chain 1 | . 1 1 Shots Hit Robots 72 | . 30 42 Core Hits 33 | . 17 16 Critical Kills . | . . . Critical Parts Destroyed . | . . . Critical Strikes 1 | . 1 . Corrupt 1 | . 1 . Melee Attacks . | . . . Impact . | . . . Slashing . | . . . Piercing . | . . . Sneak Attacks . | . . . Combat Hostiles . | . . . Follow-up Attacks . | . . . Damage Inflicted 1104 | . 428 676 Guns 836 | . 363 473 Cannons 203 | . . 203 Explosions 57 | . 57 . Melee . | . . . Ramming 8 | . 8 . Kinetic 285 | . . 285 Thermal 589 | . 220 369 Explosive . | . . . Electromagnetic 222 | . 200 22 Impact . | . . . Slashing . | . . . Piercing . | . . . Highest Corruption . | . . . Average Corruption . | . . . Corruption Purged . | . . . Corruption Blocked . | . . . Overload Shots . | . . . Overflow Damage . | . . . Projectiles . | . . . Explosions . | . . . Melee . | . . . Knockbacks . | . . . Impact . | . . . Kinetic . | . . . Secondary . | . . . Self-Inflicted Damage 37 | . 37 . Shots 1 | . 1 . Rammed 1 | . 1 . Targets Rammed 1 | . 1 . Kicked . | . . . Crushed . | . . . Highest Temperature 269 | . 120 269 Average Temperature 44 | . 41 56 Received Heat Transfer 389 | . . 389 Siege Activations . | . . . Robots Corrupted . | . . . Combat Hostiles . | . . . Parts Fried . | . . . Impact Corruptions . | . . . Robots Melted . | . . . Combat Hostiles . | . . . Parts Melted . | . . . Heat Transferred 1032 | . 425 607 Parts Sabotaged . | . . . Parts Stolen . | . . . Parts Stripped . | . . . Power Chain Reactions 2 | . 2 . Alert | -11 -10 -10 ------- Run | Yrd Mat Sub Peak Influence 246 | . 246 . Initial . | . . . Average 125 | . 132 . Maximum Alert Level 1 | . 1 . Low Security (%) 87 | 100 86 . Level 1 12 | . 13 . Level 2 . | . . . Level 3 . | . . . Level 4 . | . . . Level 5 . | . . . High Security . | . . . Max Security . | . . . Squads Dispatched 1 | . 1 . Investigation 1 | . 1 . Extermination . | . . . Reinforcement . | . . . Assault . | . . . Garrison . | . . . Intercept . | . . . Searches Triggered . | . . . Construction Impeded . | . . . Haulers Reinforced . | . . . Active Scanning Responses . | . . . Cargo Convoy Interrupts . | . . . Stealth | -11 -10 -10 --------- Run | Yrd Mat Sub Distress Signals . | . . . Communications Jammed . | . . . Distress Signals . | . . . Times Spotted 33 | . 20 13 Peak Tracking Total 5 | . 5 3 Tactical Retreats 3 | . 3 . Traps | -11 -10 -10 ------- Run | Yrd Mat Sub Traps Triggered 2 | . 2 . Indirectly . | . . . Trap Hack Attempts . | . . . Triggered . | . . . Disarmed . | . . . Reprogrammed . | . . . Reused . | . . . Traps Extracted . | . . . Installed . | . . . Triggered . | . . . Machines | -11 -10 -10 ---------- Run | Yrd Mat Sub Machines Disabled 2 | . 2 . Max in Single Turn 1 | . 1 . Machines Repaired . | . . . Machines Dismantled . | . . . Machines Sabotaged . | . . . Overloaded Fab Kills . | . . . Hacking | -11 -10 -10 --------- Run | Yrd Mat Sub Machines Accessed 1 | . 1 . Terminals . | . . . Fabricators . | . . . Repair Stations 1 | . 1 . Recycling Units . | . . . Scanalyzers . | . . . Garrison Access . | . . . Total Hacks 4 | . 4 . Successful 3 | . 3 . Failed 1 | . 1 . Catastrophic . | . . . Database Lockouts . | . . . Manual . | . . . Terminals . | . . . Fabricators . | . . . Repair Stations 4 | . 4 . Recycling Units . | . . . Scanalyzers . | . . . Garrison Access . | . . . Terminal Hacks . | . . . Fabricator Hacks . | . . . Repair Station Hacks 3 | . 3 . Scan Component 2 | . 2 . Repair 1 | . 1 . Recycling Unit Hacks . | . . . Scanalyzer . | . . . Garrison Access Hacks . | . . . Unauthorized Hacks . | . . . Terminals . | . . . Fabricators . | . . . Repair Stations . | . . . Recycling Units . | . . . Scanalyzers . | . . . Garrison Access . | . . . Data Cores Recovered . | . . . Used . | . . . Hacking Detections . | . . . Full Trace Events . | . . . Feedback Events . | . . . Feedback Blocked . | . . . Robot Schematics Acquired . | . . . Robots Built . | . . . Authchips . | . . . Time . | . . . Total Robot Build Rating . | . . . Part Schematics Acquired . | . . . Parts Built . | . . . Authchips . | . . . Time . | . . . Total Part Build Rating . | . . . Parts Repaired 1 | . 1 . Time 26 | . 26 . Parts Recycled . | . . . Recycled Matter . | . . . Retrieved Matter . | . . . Retrieved Components . | . . . Parts Scanalyzed . | . . . Part Schematics Acquired . | . . . Parts Damaged . | . . . Bothacking | -11 -10 -10 ------------ Run | Yrd Mat Sub Used RIF Installer . | . . . Robots Hacked . | . . . Non-combat . | . . . Combat . | . . . Robot Hacks Applied . | . . . Relay Couplers Released . | . . . Fabnet Peak Effective % . | . . . Robots Rewired . | . . . Allies Hacked . | . . . Hacks Repelled . | . . . Allies | -11 -10 -10 -------- Run | Yrd Mat Sub Total Allies . | . . . Largest Group . | . . . Highest-Rated Group . | . . . Highest-Rated Ally . | . . . Total Orders . | . . . Ally Attacks . | . . . Total Damage . | . . . Kills . | . . . Allies Corrupted . | . . . Allies Melted . | . . . Intel | -11 -10 -10 ------- Run | Yrd Mat Sub Robot Analysis Total . | . . . Derelict Logs Recovered . | . . . Drone Launches . | . . . Drone Recoveries . | . . . Exploration | -11 -10 -10 ------------- Run | Yrd Mat Sub Turns Passed 1613 | 55 947 611 Spaces Moved 950 | 48 414 488 Core 3 | 3 . . Treads . | . . . Legs . | . . . Wheels 947 | 45 414 488 Hover . | . . . Flight . | . . . Fastest Speed 50 | 50 90 90 Average Speed 91 | 88 90 92 Slowest Speed 105 | 100 95 105 Overloaded Moves . | . . . Propulsion Burnouts . | . . . Robots Hopped . | . . . Cave-ins Triggered . | . . . Exploration Rate (%) 32 | 3 58 36 Regions Visited 2 Branch Regions 1 Pre-discovered Areas . | . . . Known Exits Taken . | . . . Unknown Exits Taken 2 | 1 1 . Scrap Searched . | . . . Spaces Dug . | . . . Terrain Destroyed 6 | . 6 . Melee . | . . . Projectile . | . . . AOE 6 | . 6 . Terrain Rammed . | . . . Walls Destroyed . | . . . Machines Disabled . | . . . Actions | -11 -10 -10 --------- Run | Yrd Mat Sub Total 1563 | 57 928 578 Wait 488 | 1 455 32 Move 948 | 47 413 488 Hop . | . . . Pick Up 18 | 3 12 3 Fast Attach 12 | 5 2 5 Attach 5 | 1 . 4 Detach . | . . . Swap 10 | . 6 4 Drop 13 | . 8 5 Fire 68 | . 31 37 Melee . | . . . Ram 1 | . 1 . Kick . | . . . Crush . | . . . Escape Stasis . | . . . Rewire . | . . . Trap . | . . . Miscellaneous . | . . . Route ------- -11/Scrapyard -10/Materials (discovered 3 exits: [*Mat x2] / [*Sub]) -10/Subcaves History --------- Turn | Location | Event 14 | -11/Scrapyard | Discovered new exit (range 16) 56 | -11/Scrapyard | Entered Materials 186 | -10/Materials | Repaired EM Pulse Gun 309 | -10/Materials | Build established: Mutant 351 | -10/Materials | Discovered new exit (range 9) 506 | -10/Materials | Discovered new exit (range 12) 987 | -10/Materials | Discovered new exit (range 3) 1003 | -10/Materials | Entered Subcaves 1370 | -10/Subcaves | Ambushed by Subdwellers from Twisted Machinery 1517 | -10/Subcaves | Core integrity fell below 50% 1530 | -10/Subcaves | Core integrity fell below 20% 1571 | -10/Subcaves | Lost 6 parts (1p1n1u3w) 1614 | -10/Subcaves | Destroyed by C1-NY8(R) with Subdweller Machine Gun Last Messages --------------- 01504_ Scrap Shield destroyed. 01507_ Sub. Machine Gun destroyed. 01507_ YI-DBB(R) destroyed. 01511_ Critical hit (Destroy). 01511_ Battle Rifle destroyed. 01513_ Acquired Sub. Laser. 01515_ UN-DHK(R) affixes Scrap Shield Fragment to Scrap Shield. 01515_ Lgt. Ion Engine destroyed. 01519_ UN-DHK(R) destroyed. 01525_ Arm. Wheel destroyed. 01528_ Acquired 7 matter. 01530_ Acquired Sub. Power Source. 01540_ Sub. Laser destroyed. 01540_ Critical hit (Meltdown: +260). 01541_ M0-PL6(R) destroyed. 01543_ Acquired 26 matter. 01545_ Acquired Sub. Beam Cannon. 01550_ Acquired 10 matter. 01607_ Sub. Laser destroyed. 01612_ Sub. Beam Cannon shoots sparks and powers down. Map ----- +----------------------------------------------------+ | | | | | | | | | | | | | | | | | | | | | ?????????????????????????????????????????????????? | | ?????????????????????????????????????????????????? | | ?????????????????????????????????????????????????? | | ?????????????????????????????????????????????????? | | ?????????????????????????????????????????????????? | | ?????????????????????????????????????????????????? | | ?????????????????????????????????????????????????? | | ?????????????????????????????????????????????????? | | ?????????????????????????????????????????????????? | | ?????????????????????????????????????????????????? | | ?????????????????????????????????????????????????? | | ?????????????????????????????????????????????????? | | ?????????????????????????????????????????????????? | | ?????????????????????????????????????????????????? | | ????????????????????????###??????????????????????? | | ???????????????????????##@#??????????????????????? | | ??????????????????????## #??????????????????????? | | ?????????????????????## # #????????????????????? | | ????????????????????## "# R "??????????????????? | | ????????????????????# "### """ #???????????????? | | ???????????????????## "#?? ?####$???????????????? | | ???????????????#####" "#???##????????????????????? | | ??????????????## " #?????????????????????????? | | ????? ??????# ##?????????????????????????? | | ???? ?????# ###?????? ???????????????????? | | ???? ????# #?????? ????????????????????? | | ??? ##### #???? #?????????????????????? | | ??? #### #?????????????????????? | | ????# #?????????????????????? | | ????### #??????????????????????? | | ??????### #######??????????????????????? | | ????????## #????????????????????????????? | | ?????????## #????????????????????????????? | | ??????????## ##???????????????????????????? | | ???????????# #???????????????????????????? | | ???????????# ###?????????????????????????? | | ???????????# #?????????????????????????? | | ???????????# ##????????????????????????? | | ???????????## #????????????????????????? | | ????????????# ## ## #????????????????????????? | +----------------------------------------------------+ Best States ------------- Heat Dissipation 25 Energy Generation 15 Energy Capacity 200 Matter Stores 390 Matter Capacity 400 Sight Range 16 Terrain Scan Density 10 Armor Coverage 800 Core Shielding 20 Evasion (%) 42 Item Schematics ----------------- None Robot Schematics ------------------ None Fabricated ------------ Nothing Alien Tech Used ----------------- None Achievements -------------- None Challenges ------------ None Game ------ Seed SalvagingAlphaStreamer Manual? 0 Play Time 00:10:23 Cumulative 108.5 hours Start 2024.10.05 @ 14:05:08 End 2024.10.05 @ 14:15:39 Sessions 1 Manual Loads 0 Difficulty Rogue Special Mode None Game No. 189 Rogue 189 Adventurer 0 Explorer 0 Win Type - Total 1 Types 1/0/0/0/0/0/0/0/0 Lore% 51 Gallery% 54 Achievement% 44 Wizard Run 0 Options --------- Layout 0 ASCII 0 Keyboard 1 Movement Numpad Keybinds 0 Fullscreen 2 Font 18/SmallcapsGlow Map View 76x50 Zoom Use 0% Tactical HUD 1 Map Filters NONE Filters NONE Steam 1 RUN: d60b27bd-cd43-4810-8d90-78a366c7f4f0